Cogmind - Beta 13 @@@ ROGUE MODE // 2024.04.02 @ 19:31:02 Player: CrimsonOccultist Result: Self-destructed Performance ------------- Evolutions (7) 3500 Regions Visited (12) 2400 Robots Destroyed (142) 710 Value Destroyed (3170) 3170 Prototype IDs (59) 1180 Alien Tech Used (0) 0 Bonus (921) 921 TOTAL SCORE: 11881 Bonus ------- High Alert Combat Kills 172 Entered DSFs 500 Aligned with FarCom 300 Friendly Fire -51 Cogmind --------- Core Integrity 454/1300 Matter 270/300 Energy 76/100 System Corruption 9% Temperature Cool (0) Movement Core (50) Location -3/Research Parts ------- > --- POWER (2) -------- (None) > --- PROPULSION (6) --- (None) > --- UTILITY (11) ----- Hacking Suite Hacking Suite Hacking Suite > --- WEAPON (2) ------- (None) > --- INVENTORY (5) ---- Advanced Cooling System Advanced System Restoration Module Peak State ------------ > --- POWER ------------ Light Particle Reactor Micro Antimatter Reactor > --- PROPULSION ------- Cooled VTOL Module Cooled VTOL Module Nuclear Pulse Thruster Cooled Nuclear Pulse Thruster Diametric Drive Q-thruster > --- UTILITY ---------- Experimental Power Amplifier Cloaking Device Hacking Suite Hacking Suite Hacking Suite Hacking Suite Hacking Suite Hacking Suite Improved Hacking Suite Improved Hacking Suite Advanced System Shield > --- WEAPON ----------- Plasma Sword > --- INVENTORY -------- Particle Reactor Impulse Thruster Array Force Field System Restoration Module [Rating: 112] Favorites ----------- Power Light Nuclear Core Engine Cooled Deuterium Engine Power Core Light Nuclear Core Reactor Micro Antimatter Reactor Propulsion Light Treads Treads Light Treads Flight Unit Cooled VTOL Module Utility Hacking Suite Device Force Field Storage Large Storage Unit Processor Advanced Targeting Computer Hackware Hacking Suite Protection Hardened Light Armor Plating Weapon Heavy Assault Rifle Ballistic Gun Heavy Assault Rifle Launcher Grenade Launcher Special Weapon Remote Datajack Slashing Weapon Longsword +1 Special Melee Weapon Datajack Build | -11 -10 -10 -10 -9 -8 -7 -6 -5 -5 -4 -4 -3 ------- Run | Yrd Mat Min Exi Min Mat Fac Fac Fac Ext Fac DSF Res Slots Evolved 14 | . . . . . 4 2 2 2 . 2 . 2 Power 1 | . . . . . . . . 1 . . . . Propulsion 4 | . . . . . 1 1 . 1 . 1 . . Utility 9 | . . . . . 3 1 2 . . 1 . 2 Weapon . | . . . . . . . . . . . . . Parts Attached 143 | 7 9 3 5 . 43 21 14 16 . . 1 24 Power 16 | 1 2 . . . 3 2 2 1 . . . 5 Engine 4 | 1 . . . . 1 . 2 . . . . . Core 7 | . 2 . . . 2 2 . 1 . . . . Reactor 5 | . . . . . . . . . . . . 5 Propulsion 37 | 2 2 . . . 8 6 8 6 . . 1 4 Treads 12 | 2 2 . . . 8 . . . . . . . Leg . | . . . . . . . . . . . . . Wheel . | . . . . . . . . . . . . . Hover . | . . . . . . . . . . . . . Flight 25 | . . . . . . 6 8 6 . . 1 4 Utility 49 | 2 3 . . . 12 10 3 5 . . . 14 Device 17 | . . . . . 3 1 2 2 . . . 9 Storage 5 | 2 3 . . . . . . . . . . . Processor 3 | . . . . . 2 1 . . . . . . Hackware 16 | . . . . . . 7 1 3 . . . 5 Protection 8 | . . . . . 7 1 . . . . . . Artifact . | . . . . . . . . . . . . . Weapon 41 | 2 2 3 5 . 20 3 1 4 . . . 1 Energy Gun . | . . . . . . . . . . . . . Energy Cannon . | . . . . . . . . . . . . . Ballistic Gun 24 | 2 2 2 4 . 14 . . . . . . . Ballistic Cannon . | . . . . . . . . . . . . . Launcher 7 | . . 1 . . 6 . . . . . . . Special Weapon 2 | . . . . . . 1 . 1 . . . . Impact Weapon . | . . . . . . . . . . . . . Slashing Weapon 5 | . . . . . . 1 . 3 . . . 1 Piercing Weapon . | . . . . . . . . . . . . . Special Melee Weapon 3 | . . . 1 . . 1 1 . . . . . Unidentified Prototypes 8 | . . . . . 1 . 1 3 . . . 3 Parts Lost 57 | . . 1 . . 22 4 3 . 1 . 4 22 Power 7 | . . . . . 2 . . . . . 1 4 Propulsion 21 | . . . . . 9 1 2 . . . 2 7 Utility 18 | . . . . . 6 2 . . . . . 10 Weapon 11 | . . 1 . . 5 1 1 . 1 . 1 1 Highest Loss Streak 22 | . . 1 . . 3 2 1 . 1 . 4 22 To Critical Strikes 1 | . . . . . 1 . . . . . . . Average Slot Usage (%) 89 | . 99 99 85 100 79 91 91 94 100 84 77 87 Engine 1 | . 1 . . . . . 5 5 5 5 3 . Core 7 | . 12 14 14 14 8 6 . . 5 5 3 . Treads 14 | . 28 28 28 28 17 . . . . . . . Flight 9 | . . . . . . 27 24 29 29 26 24 25 Device 1 | . . . . . 1 1 3 . . . . 7 Storage 14 | . 27 28 28 28 18 . . . . . . . Processor 1 | . . . . . 5 1 . . . . . . Hackware 15 | . . . . . . 33 46 46 47 42 42 41 Protection 2 | . . . . . 9 2 . . . . . . Ballistic Gun 12 | . 28 27 . 28 17 . . . . . . . Slashing Weapon 2 | . . . . . . 6 6 5 5 5 3 3 Special Melee Weapon 1 | . . . 13 . . 6 . 1 . . . . Naked Turns . | . . . . . . . . . . . . . Heaviest Build 71 | 17 51 51 51 51 71 54 20 23 23 19 19 37 Greatest Support 60 | 40 40 40 40 40 60 21 26 38 38 38 46 44 Greatest Overweight (x) 3 | . 1 1 1 1 3 3 1 . 3 . . 2 Average Overweight (x) . | . . 1 1 1 . . . . . . . . Largest Inventory Capacity 15 | 8 15 15 15 15 15 15 5 5 5 5 5 5 Average Capacity 10 | 7 10 15 15 15 15 5 5 5 5 5 5 5 Most Carried 15 | 1 10 10 12 12 15 15 5 5 3 3 5 5 Average Carried 8 | . 7 9 11 11 13 4 4 3 3 3 3 4 Final Capacity 15 | 8 15 15 15 15 15 5 5 5 5 5 5 5 Final Carried 14 | 1 10 10 11 12 14 5 5 3 3 3 5 2 Class Distribution -------------------- 55% | Mutant 28% | Wizard-Sprinter 6% | Scavenger-Mutant 5% | Hacker-Sprinter Dominant Class ---------------- Mutant | -10/Materials Mutant | -10/Mines Scavenger-Mutant | -10/Exiles Mutant | -9/Mines Mutant | -8/Materials Hacker-Sprinter | -7/Factory Wizard-Sprinter | -6/Factory Wizard-Sprinter | -5/Factory Wizard-Sprinter | -5/Extension Wizard-Sprinter | -4/Factory Wizard-Sprinter | -4/DSF Wizard-Sprinter | -3/Research Resources | -11 -10 -10 -10 -9 -8 -7 -6 -5 -5 -4 -4 -3 ----------- Run | Yrd Mat Min Exi Min Mat Fac Fac Fac Ext Fac DSF Res Matter Collected 3190 | 239 527 179 . 68 1310 151 311 27 12 . . 366 Remotely . | . . . . . . . . . . . . . Salvage Created 4841 | 69 766 201 . . 2129 352 742 167 62 . . 353 Parts 322 | 2 68 17 . . 126 34 45 4 7 . . 19 Haulers Intercepted 11 | . 2 . . . 4 2 2 . . . . 1 Recyclers Shooed 5 | 1 1 . . . 3 . . . . . . . Parts Field Recycled . | . . . . . . . . . . . . . Retrieved Matter . | . . . . . . . . . . . . . Parts Self-Destructed . | . . . . . . . . . . . . . Prevented . | . . . . . . . . . . . . . Kills | -11 -10 -10 -10 -9 -8 -7 -6 -5 -5 -4 -4 -3 ------- Run | Yrd Mat Min Exi Min Mat Fac Fac Fac Ext Fac DSF Res Combat Hostiles Destroyed 72 | . 11 7 . . 43 2 6 . 1 . . 2 Melee 12 | . . . . . 1 2 6 . 1 . . 2 Guns 45 | . 11 5 . . 29 . . . . . . . AOE 15 | . . 2 . . 13 . . . . . . . Classes Destroyed 13 | 1 7 1 . . 3 1 . . . . . . Worker 16 | . 2 . . . 4 . 5 2 . . . 3 Builder 7 | . . 1 . . 3 2 . . 1 . . . Tunneler 4 | . 1 . . . 1 1 . 1 . . . . Hauler 11 | . 2 . . . 4 2 2 . . . . 1 Recycler 10 | 1 3 . . . 4 . 1 1 . . . . Mechanic 1 | . . . . . 1 . . . . . . . Operator 9 | . 4 . . . 2 1 2 . . . . . Watcher 13 | . 3 . . . 3 3 2 . . . . 2 Swarmer 27 | . 5 3 . . 15 . 3 . . . . 1 Grunt 32 | . 6 4 . . 22 . . . . . . . Sentry 4 | . . . . . 4 . . . . . . . Hunter 3 | . . . . . 2 . 1 . . . . . Programmer 6 | . . . . . . 2 2 . 1 . . 1 Best Kill Streak 9 | 1 4 4 . . 9 3 4 2 1 . . 2 Combat Bots Only 5 | . 3 3 . . 5 1 4 . 1 . . 1 Max Kills in Single Turn 4 | 1 1 2 . . 4 1 1 1 1 . . 1 Gunslinging . | . . . . . . . . . . . . . Exploded 3 | . . 2 . . 3 . . . . . . . Melee 1 | . . . . . 1 1 1 . 1 . . 1 Uniques/NPCs Destroyed . | . . . . . . . . . . . . . Combat | -11 -10 -10 -10 -9 -8 -7 -6 -5 -5 -4 -4 -3 -------- Run | Yrd Mat Min Exi Min Mat Fac Fac Fac Ext Fac DSF Res Hostile Shots Fired 663 | . 66 35 . . 307 25 45 6 15 . 12 152 Missed 195 | . 19 6 . . 76 16 12 4 6 . 6 50 Damage Taken 7760 | . 519 399 . . 3488 182 506 238 195 . 249 1984 Core 1890 | . 76 18 . . 425 20 119 200 52 . 134 846 Absorbed by Shields 439 | . . . . . 233 . . . . . 14 192 Regen/Repaired (Parts) 361 | . . . . . 233 34 94 . . . . . Core Remaining (%) 75 | 100 . . . 62 22 97 86 . 74 . 88 . Volleys Fired 283 | 4 71 17 . . 188 . . 3 . . . . Largest 2 | 2 2 2 . . 2 . . 1 . . . . Hottest 55 | 40 46 53 . . 55 . . 7 . . . . Shots Fired 539 | 8 142 34 . . 352 . . 3 . . . . Gun 516 | 8 142 32 . . 334 . . . . . . . Cannon . | . . . . . . . . . . . . . Launcher 20 | . . 2 . . 18 . . . . . . . Special 3 | . . . . . . . . 3 . . . . Kinetic 516 | 8 142 32 . . 334 . . . . . . . Thermal . | . . . . . . . . . . . . . Explosive 20 | . . 2 . . 18 . . . . . . . Electromagnetic . | . . . . . . . . . . . . . Robot Hit Streak 17 | 4 8 9 . . 17 . . 2 . . . . Robot Miss Streak 5 | 1 4 2 . . 5 . . 1 . . . . Penetration Max . | . . . . . . . . . . . . . Secondary Targets 3 | . . . . . 3 . . . . . . . Max Gunslinging Chain 1 | . . . . . 1 . . . . . . . Shots Hit Robots 458 | 6 87 24 8 . 229 25 43 9 4 . . 23 Core Hits 205 | 2 38 10 . . 119 8 15 2 1 . . 10 Critical Kills 1 | . . . . . 1 . . . . . . . Critical Parts Destroyed 2 | . 1 . . . 1 . . . . . . . Critical Strikes 13 | . 1 . . . 2 . 3 . . . . 7 Destroy 3 | . 1 . . . 2 . . . . . . . Sever 10 | . . . . . . . 3 . . . . 7 Melee Attacks 266 | . . . 8 . . 42 80 32 5 . 1 98 Impact . | . . . . . . . . . . . . . Slashing 258 | . . . . . . 42 80 32 5 . 1 98 Piercing . | . . . . . . . . . . . . . Sneak Attacks 33 | . . . 7 . . 6 10 4 1 . . 5 Combat Hostiles 1 | . . . . . . . 1 . . . . . Follow-up Attacks . | . . . . . . . . . . . . . Damage Inflicted 12563 | 78 1191 464 . . 4555 1505 2628 527 263 . . 1352 Guns 4877 | 74 1171 349 . . 3283 . . . . . . . Cannons . | . . . . . . . . . . . . . Explosions 1245 | . . 115 . . 1130 . . . . . . . Melee 6275 | . . . . . . 1505 2628 527 263 . . 1352 Ramming 166 | 4 20 . . . 142 . . . . . . . Kinetic 4877 | 74 1171 349 . . 3283 . . . . . . . Thermal . | . . . . . . . . . . . . . Explosive 1245 | . . 115 . . 1130 . . . . . . . Electromagnetic . | . . . . . . . . . . . . . Impact . | . . . . . . . . . . . . . Slashing 6275 | . . . . . . 1505 2628 527 263 . . 1352 Piercing . | . . . . . . . . . . . . . Highest Corruption 9 | . 1 1 1 1 . . 1 . 2 . . 9 Average Corruption 1 | . 1 1 1 1 . . 1 . 1 . . 3 Corruption Purged 4 | . . . . . . . 1 . . . . 3 Corruption Blocked . | . . . . . . . . . . . . . Effects 55 | . 2 9 9 5 . . 3 . 3 . . 24 Message Errors 10 | . . 2 . 1 . . . . 2 . . 5 Matter Fused 16 | . . 3 1 2 . . 1 . 1 . . 8 Heat Flow Errors 9 | . . 1 1 1 . . 1 . . . . 5 Energy Discharges 7 | . 1 . 3 . . . 1 . . . . 2 Data Loss (minor) 7 | . . 1 2 1 . . . . . . . 3 Data Loss (major) 4 | . 1 1 1 . . . . . . . . 1 Alerts 2 | . . 1 1 . . . . . . . . . Overload Shots . | . . . . . . . . . . . . . Overflow Damage 1214 | . . . . . 34 271 553 267 62 . . 27 Projectiles . | . . . . . . . . . . . . . Explosions 30 | . . . . . 30 . . . . . . . Melee 1184 | . . . . . 4 271 553 267 62 . . 27 Knockbacks 2 | . . . . . 2 . . . . . . . Impact 2 | . . . . . 2 . . . . . . . Kinetic . | . . . . . . . . . . . . . Secondary . | . . . . . . . . . . . . . Self-Inflicted Damage 151 | . . . . . 151 . . . . . . . Shots 7 | . . . . . 7 . . . . . . . Rammed 33 | 1 6 1 . . 24 . . . . . . 1 Targets Rammed 35 | 1 7 1 . . 25 . . . . . . 1 Kicked . | . . . . . . . . . . . . . Crushed 2 | . 1 . . . 1 . . . . . . . Highest Temperature 542 | . 9 219 131 182 88 . 130 530 211 152 72 542 Average Temperature 66 | . 2 46 70 95 17 . 70 380 109 84 42 90 Received Heat Transfer 1798 | . 144 189 . . 1447 9 . . 9 . . . Effects 10 | . . . . . . . . 4 . . . 6 Shutdowns 4 | . . . . . . . . 2 . . . 2 Energy Bleed 2 | . . . . . . . . . . . . 2 Interference 1 | . . . . . . . . . . . . 1 Matter Decay 1 | . . . . . . . . 1 . . . . Damage (minor) 1 | . . . . . . . . . . . . 1 Damage (core) 1 | . . . . . . . . 1 . . . . Siege Activations . | . . . . . . . . . . . . . Robots Corrupted . | . . . . . . . . . . . . . Combat Hostiles . | . . . . . . . . . . . . . Parts Fried . | . . . . . . . . . . . . . Impact Corruptions 1 | . . . . . 1 . . . . . . . Robots Melted . | . . . . . . . . . . . . . Combat Hostiles . | . . . . . . . . . . . . . Parts Melted . | . . . . . . . . . . . . . Heat Transferred . | . . . . . . . . . . . . . Parts Sabotaged . | . . . . . . . . . . . . . Parts Stolen . | . . . . . . . . . . . . . Parts Stripped . | . . . . . . . . . . . . . Power Chain Reactions . | . . . . . . . . . . . . . Alert | -11 -10 -10 -10 -9 -8 -7 -6 -5 -5 -4 -4 -3 ------- Run | Yrd Mat Min Exi Min Mat Fac Fac Fac Ext Fac DSF Res Peak Influence 723 | 5 212 139 . . 723 442 162 152 130 44 23 105 Initial 328 | . 3 . . . . 328 22 9 17 44 21 . Average 173 | . 62 40 . . 414 196 56 62 63 17 14 54 Maximum Alert Level 3 | . 1 . . . 3 2 . . . . . . Low Security (%) 74 | 100 98 100 . 100 27 62 100 100 100 100 100 100 Level 1 5 | . 1 . . . 9 18 . . . . . . Level 2 18 | . . . . . 56 19 . . . . . . Level 3 1 | . . . . . 6 . . . . . . . Level 4 . | . . . . . . . . . . . . . Level 5 . | . . . . . . . . . . . . . High Security . | . . . . . . . . . . . . . Max Security . | . . . . . . . . . . . . . Squads Dispatched 36 | . 3 . . . 12 6 7 2 . . 1 5 Investigation 11 | . . . . . 6 3 1 . . . . 1 Extermination 6 | . . . . . . 2 2 . . . . 2 Reinforcement 18 | . 3 . . . 5 1 4 2 . . 1 2 Assault 1 | . . . . . 1 . . . . . . . Garrison . | . . . . . . . . . . . . . Intercept . | . . . . . . . . . . . . . Searches Triggered . | . . . . . . . . . . . . . Construction Impeded 2 | . . . . . 2 . . . . . . . Haulers Reinforced 1 | . . . . . . . . . . . . 1 Active Scanning Responses . | . . . . . . . . . . . . . Cargo Convoy Interrupts . | . . . . . . . . . . . . . Stealth | -11 -10 -10 -10 -9 -8 -7 -6 -5 -5 -4 -4 -3 --------- Run | Yrd Mat Min Exi Min Mat Fac Fac Fac Ext Fac DSF Res Distress Signals 6 | . . . . . 4 1 . 1 . . . . Communications Jammed . | . . . . . . . . . . . . . Distress Signals . | . . . . . . . . . . . . . Times Spotted 192 | . 23 6 . . 75 20 14 11 10 . 5 28 Peak Tracking Total 8 | . 3 3 . . 6 4 3 8 5 . 5 7 Tactical Retreats 23 | . 2 . . . 3 5 1 2 3 . . 7 Traps | -11 -10 -10 -10 -9 -8 -7 -6 -5 -5 -4 -4 -3 ------- Run | Yrd Mat Min Exi Min Mat Fac Fac Fac Ext Fac DSF Res Traps Triggered 5 | . 1 . . . . 1 1 . . . 1 1 Indirectly . | . . . . . . . . . . . . . Trap Hack Attempts . | . . . . . . . . . . . . . Triggered . | . . . . . . . . . . . . . Disarmed 20 | . . . . . . . . 6 9 4 . 1 Reprogrammed 1 | . . . . . . . 1 . . . . . Reused . | . . . . . . . . . . . . . Traps Extracted . | . . . . . . . . . . . . . Installed . | . . . . . . . . . . . . . Triggered 1 | . . . . . . . . . 1 . . . Machines | -11 -10 -10 -10 -9 -8 -7 -6 -5 -5 -4 -4 -3 ---------- Run | Yrd Mat Min Exi Min Mat Fac Fac Fac Ext Fac DSF Res Machines Disabled . | . . . . . . . . . . . . . Max in Single Turn . | . . . . . . . . . . . . . Garrison Access 6 | . . . . . 1 . 2 1 . . . 2 Machines Repaired . | . . . . . . . . . . . . . Machines Dismantled . | . . . . . . . . . . . . . Machines Sabotaged . | . . . . . . . . . . . . . Overloaded Fab Kills . | . . . . . . . . . . . . . Hacking | -11 -10 -10 -10 -9 -8 -7 -6 -5 -5 -4 -4 -3 --------- Run | Yrd Mat Min Exi Min Mat Fac Fac Fac Ext Fac DSF Res Machines Accessed 77 | . 6 . 3 . 12 14 13 11 8 3 . 7 Terminals 46 | . 5 . . . 7 7 5 8 8 3 . 3 Fabricators 4 | . . . . . . 2 1 . . . . 1 Repair Stations 4 | . . . . . 1 1 2 . . . . . Recycling Units 9 | . 1 . . . 2 3 1 1 . . . 1 Scanalyzers 5 | . . . . . 1 1 2 1 . . . . Garrison Access 6 | . . . . . 1 . 2 1 . . . 2 Total Hacks 241 | . 15 . 13 . 41 33 32 39 26 21 . 21 Successful 200 | . 10 . 13 . 24 27 30 38 25 14 . 19 Failed 41 | . 5 . . . 17 6 2 1 1 7 . 2 Catastrophic 4 | . 1 . . . 2 . . . . 1 . . Database Lockouts . | . . . . . . . . . . . . . Manual 101 | . 7 . 3 . 18 8 5 25 14 14 . 7 Terminals 159 | . 13 . . . 22 18 13 35 26 21 . 11 Fabricators 10 | . . . . . . 4 3 . . . . 3 Repair Stations 15 | . . . . . 5 2 8 . . . . . Recycling Units 19 | . 2 . . . 3 7 1 1 . . . 5 Scanalyzers 16 | . . . . . 8 2 4 2 . . . . Garrison Access 9 | . . . . . 3 . 3 1 . . . 2 Terminal Hacks 100 | . 3 . 13 . 4 11 9 20 21 12 . 7 Record 16 | . . . 12 . 1 . 2 1 . . . . Part Schematic 2 | . . . . . . 1 . . 1 . . . Robot Schematic 1 | . . . . . . . . 1 . . . . Robot Analysis 1 | . 1 . . . . . . . . . . . Prototype ID Bank 6 | . 1 . . . 1 2 . 1 1 . . . Open Door 4 | . . . . . . . . . 4 . . . Open DSF 7 | . . . . . . 2 2 2 . 1 . . Level Access Points 4 | . . . . . . . 1 1 1 1 . . Branch Access Points 6 | . . . . . 2 . 1 1 1 1 . . Emergency Access Points 3 | . . . . . . 1 . 1 . 1 . . Machine Index 1 | . . . . . . . . . 1 . . . Terminal Index 3 | . . . . . . . . 1 1 1 . . Fabricator Index 3 | . . . . . . . . 1 1 1 . . Repair Station Index 2 | . . . . . . . 1 . 1 . . . Alert Level 4 | . . . . . . 2 1 . . 1 . . Unreport Threat 9 | . . . . . . 2 . 2 2 1 . 2 Locate Traps 1 | . . . . . . . . . 1 . . . Disarm Traps 7 | . . . . . . . . 1 2 3 . 1 Reprogram Traps 2 | . . . . . . . 1 1 . . . . Dispatch Records 1 | . . . . . . . . 1 . . . . Investigation Status 2 | . . . . . . . . 1 . . . 1 Extermination Status 1 | . . . . . . . . . 1 . . . Recall Investigation 1 | . . . . . . 1 . . . . . . Recall Reinforcements 2 | . . . . . . . . . . . . 2 Registered Components 2 | . 1 . . . . . . . 1 . . . Zone Layout 7 | . . . . . . . . 3 2 1 . 1 Security Stations 1 | . . . . . . . . 1 . . . . Derelict Proto ID Bank 1 | . . . 1 . . . . . . . . . Fabricator Hacks 10 | . . . . . . 4 3 . . . . 3 Network Status 1 | . . . . . . . . . . . . 1 Load Schematic 5 | . . . . . . 2 2 . . . . 1 Build 4 | . . . . . . 2 1 . . . . 1 Repair Station Hacks 14 | . . . . . 4 2 8 . . . . . Scan Component 7 | . . . . . 2 1 4 . . . . . Repair 7 | . . . . . 2 1 4 . . . . . Recycling Unit Hacks 14 | . 1 . . . 1 5 1 1 . . . 5 Recycle Component 1 | . . . . . . . . . . . . 1 Process 1 | . . . . . . . . . . . . 1 Report Inventory 2 | . . . . . . 1 1 . . . . . Retrieve Matter 2 | . . . . . . . . . . . . 2 Retrieve Components 8 | . 1 . . . 1 4 . 1 . . . 1 Scanalyzer 14 | . . . . . 6 2 4 2 . . . . Insert Component 7 | . . . . . 3 1 2 1 . . . . Analyze 7 | . . . . . 3 1 2 1 . . . . Garrison Access Hacks 7 | . . . . . 1 . 3 1 . . . 2 Seal Access 6 | . . . . . 1 . 2 1 . . . 2 Coupler Status 1 | . . . . . . . 1 . . . . . Unauthorized Hacks 41 | . 6 . . . 8 3 2 14 4 2 . 2 Terminals 41 | . 6 . . . 8 3 2 14 4 2 . 2 Assimilate 12 | . 1 . . . 2 1 . 6 1 . . 1 Botnet 23 | . 3 . . . 6 2 2 6 2 1 . 1 Operators 6 | . 2 . . . . . . 2 1 1 . . Fabricators . | . . . . . . . . . . . . . Repair Stations . | . . . . . . . . . . . . . Recycling Units . | . . . . . . . . . . . . . Scanalyzers . | . . . . . . . . . . . . . Garrison Access . | . . . . . . . . . . . . . Data Cores Recovered 1 | . . . . . . 1 . . . . . . Used . | . . . . . . . . . . . . . Hacking Detections 54 | . 5 . . . 11 12 4 9 6 2 . 5 Full Trace Events 12 | . 1 . . . 6 3 1 . . . . 1 Feedback Events . | . . . . . . . . . . . . . Feedback Blocked . | . . . . . . . . . . . . . Robot Schematics Acquired 1 | . . . . . . . . 1 . . . . Robots Built . | . . . . . . . . . . . . . Authchips . | . . . . . . . . . . . . . Time . | . . . . . . . . . . . . . Total Robot Build Rating . | . . . . . . . . . . . . . Part Schematics Acquired 8 | . . . . . 2 2 2 1 1 . . . Parts Built 4 | . . . . . . 2 1 . . . . 1 Authchips . | . . . . . . . . . . . . . Time 330 | . . . . . . 207 67 . . . . 56 Total Part Build Rating 17 | . . . . . . 7 4 . . . . 6 Parts Repaired 7 | . . . . . 2 1 4 . . . . . Time 289 | . . . . . 64 38 187 . . . . . Parts Recycled 1 | . . . . . . . . . . . . 1 Recycled Matter 40 | . . . . . . . . . . . . 40 Retrieved Matter 40 | . . . . . . . . . . . . 40 Retrieved Components 32 | . 9 . . . 10 12 . 1 . . . . Parts Scanalyzed 6 | . . . . . 2 1 2 1 . . . . Part Schematics Acquired 6 | . . . . . 2 1 2 1 . . . . Parts Damaged 1 | . . . . . . . 1 . . . . . Bothacking | -11 -10 -10 -10 -9 -8 -7 -6 -5 -5 -4 -4 -3 ------------ Run | Yrd Mat Min Exi Min Mat Fac Fac Fac Ext Fac DSF Res Used RIF Installer . | . . . . . . . . . . . . . Robots Hacked 6 | . . . 5 . . . . 1 . . . . Non-combat 4 | . . . 3 . . . . 1 . . . . Combat 2 | . . . 2 . . . . . . . . . Robot Hacks Applied 8 | . . . 7 . . . . 1 . . . . parse_system 8 | . . . 7 . . . . 1 . . . . Relay Couplers Released . | . . . . . . . . . . . . . Fabnet Peak Effective % . | . . . . . . . . . . . . . Robots Rewired . | . . . . . . . . . . . . . Allies Hacked 1 | . . . . . . . . . 1 . . . Hacks Repelled . | . . . . . . . . . . . . . Allies | -11 -10 -10 -10 -9 -8 -7 -6 -5 -5 -4 -4 -3 -------- Run | Yrd Mat Min Exi Min Mat Fac Fac Fac Ext Fac DSF Res Total Allies 8 | . 1 . . . . . . . 6 . . 1 Largest Group 4 | . 1 . . . . . . . 4 . . 1 Highest-Rated Group 102 | . 10 . . . . . . . 102 . . 26 Highest-Rated Ally 39 | . 10 . . . . . . . 39 . . 26 Total Orders . | . . . . . . . . . . . . . Ally Attacks 14 | . . . . . . . . . 14 . . . Total Damage 440 | . . . . . . . . . 440 . . . Kills 1 | . . . . . . . . . 1 . . . Allies Corrupted 1 | . . . . . . . . . 1 . . . Allies Melted . | . . . . . . . . . . . . . Intel | -11 -10 -10 -10 -9 -8 -7 -6 -5 -5 -4 -4 -3 ------- Run | Yrd Mat Min Exi Min Mat Fac Fac Fac Ext Fac DSF Res Robot Analysis Total 1 | . 1 . . . . . . . . . . . Derelict Logs Recovered 3 | . . 2 . 1 . . . . . . . . Drone Launches 2 | . . . . . . . 2 . . . . . Drone Recoveries . | . . . . . . . . . . . . . Exploration | -11 -10 -10 -10 -9 -8 -7 -6 -5 -5 -4 -4 -3 ------------- Run | Yrd Mat Min Exi Min Mat Fac Fac Fac Ext Fac DSF Res Turns Passed 13930 | 129 2175 1118 975 505 3769 1518 1630 478 210 36 28 1359 Spaces Moved 11098 | 67 1058 442 398 211 1175 1784 2023 1587 421 161 80 1691 Core 90 | 2 . . . . . . . . . . 5 83 Treads 3349 | 65 1058 442 398 211 1175 . . . . . . . Legs . | . . . . . . . . . . . . . Wheels . | . . . . . . . . . . . . . Hover . | . . . . . . . . . . . . . Flight 7659 | . . . . . . 1784 2023 1587 421 161 75 1608 Fastest Speed 6 | 50 160 240 240 240 160 27 21 11 11 11 6 11 Average Speed 84 | 156 179 240 240 240 235 28 29 23 38 22 19 24 Slowest Speed 400 | 160 240 240 240 240 400 269 114 34 235 24 50 200 Overloaded Moves 397 | . . . . . . . 138 65 74 20 34 66 Propulsion Burnouts . | . . . . . . . . . . . . . Robots Hopped 1 | . . . . . . . . 1 . . . . Cave-ins Triggered . | . . . . . . . . . . . . . Exploration Rate (%) 50 | 6 79 94 70 53 81 28 37 33 49 5 87 31 Regions Visited 12 Branch Regions 4 Pre-discovered Areas 1 | . . . 1 . . . . . . . . . Known Exits Taken 6 | . . . . . 1 1 1 1 1 1 . . Unknown Exits Taken 5 | 1 1 1 1 1 . . . . . . . . Scrap Searched 6 | . . 3 . 3 . . . . . . . . Spaces Dug 124 | . . . . . 5 11 22 24 1 . 1 60 Terrain Destroyed 239 | . . 9 . . 111 11 22 24 1 . 1 60 Melee 119 | . . . . . . 11 22 24 1 . 1 60 Projectile . | . . . . . . . . . . . . . AOE 120 | . . 9 . . 111 . . . . . . . Terrain Rammed . | . . . . . . . . . . . . . Walls Destroyed . | . . . . . . . . . . . . . Machines Disabled . | . . . . . . . . . . . . . Actions | -11 -10 -10 -10 -9 -8 -7 -6 -5 -5 -4 -4 -3 --------- Run | Yrd Mat Min Exi Min Mat Fac Fac Fac Ext Fac DSF Res Total 14772 | 79 1195 464 418 211 1802 2766 2982 1656 461 160 90 2488 Wait 2777 | . 18 1 . . 345 885 830 4 36 . 1 657 Move 11084 | 66 1057 441 397 210 1174 1783 2022 1584 420 160 79 1691 Hop 1 | . . . . . . . . 1 . . . . Pick Up 70 | 1 17 1 2 1 18 9 10 3 . . 2 6 Fast Attach 69 | 7 3 . . . 17 11 9 9 . . 1 12 Attach 45 | . 1 1 5 . 13 9 3 3 . . . 10 Detach 29 | . 1 . 5 . 2 7 4 3 . . . 7 Swap 30 | . 5 2 . . 13 1 2 4 . . . 3 Drop 66 | . 15 . 1 . 7 19 11 10 . . . 3 Fire 283 | 4 71 17 . . 188 . . 3 . . . . Melee 266 | . . . 8 . . 42 80 32 5 . 1 98 Ram 1 | . . . . . . . . . . . . 1 Kick . | . . . . . . . . . . . . . Crush 34 | 1 7 1 . . 25 . . . . . . . Escape Stasis 17 | . . . . . . . 11 . . . 6 . Rewire . | . . . . . . . . . . . . . Trap . | . . . . . . . . . . . . . Miscellaneous . | . . . . . . . . . . . . . Route ------- -11/Scrapyard -10/Materials (discovered 3 exits: [*Mat x2] / [*Min]) -10/Mines (discovered 2 exits: [*Mat] / *Exi) -10/Exiles -9/Mines -8/Materials (discovered 2 exits: *Fac x2) -7/Factory (discovered 3 exits: *Fac x3) -6/Factory (discovered 6 exits: *Fac x4 / *Low x2) -5/Factory (discovered 8 exits: *Fac x4 / Upp x2 / *Ext x2) -5/Extension (discovered 3 exits: *Fac x2 / Cet) -4/Factory (discovered 7 exits: Res x4 / Upp x2 / DSF) -4/DSF -3/Research History --------- Turn | Location | Event 6 | -11/Scrapyard | Discovered new exit (range 16) 130 | -11/Scrapyard | Entered Materials 311 | -10/Materials | Build established: Mutant 619 | -10/Materials | Discovered new exit (range 16) 1986 | -10/Materials | Discovered new exit (range 7) 2137 | -10/Materials | Discovered new exit (range 16) 2305 | -10/Materials | Entered Mines 2474 | -10/Mines | Learned Materials interactive machine intel 2506 | -10/Mines | Learned Materials trap positions 2979 | -10/Mines | Discovered new exit (range 8) 3411 | -10/Mines | Deemed a non-threat by the Exiles lab entrance 3414 | -10/Mines | Discovered new exit (range 5) 3423 | -10/Mines | Entered Exiles 3482 | -10/Exiles | Met 8R-AWN 3533 | -10/Exiles | Met EX-HEX 3729 | -10/Exiles | Met EX-BIN 3732 | -10/Exiles | Build established: Scavenger-Mutant 3764 | -10/Exiles | Aligned with FarCom system 3766 | -10/Exiles | Given EX-Vault access code 3829 | -10/Exiles | Opened EX-Vault 3855 | -10/Exiles | Found Longsword +1 3911 | -10/Exiles | Warned to stay clear of 0b10 Research branches 4190 | -10/Exiles | Met EX-DEC 4256 | -10/Exiles | Learned location of Zion (-7) 4366 | -10/Exiles | Discovered new exit (range 14) 4398 | -10/Exiles | Left Exiles lab with Longsword +1 4398 | -10/Exiles | Entered Mines 4506 | -9/Mines | Learned location of 1 exit from Materials 4665 | -9/Mines | Build established: Mutant 4817 | -9/Mines | Discovered new exit (range 8) 4903 | -9/Mines | Entered Materials 4903 | -8/Materials | Evolved 4 slots: Propulsion x1, Utility x3 4904 | -8/Materials | Identified exit to Factory 4905 | -8/Materials | Loaded intel: 13 trap records 4906 | -8/Materials | Loaded intel: 18 interactive machine locations 5464 | -8/Materials | Lost 3 parts (1p1u1w) 6302 | -8/Materials | Core integrity fell below 50% 6929 | -8/Materials | Repaired Hrd. Light Armor Plating 6967 | -8/Materials | Repaired Hvy. Assault Rifle 7303 | -8/Materials | First assault squad dispatched 8659 | -8/Materials | Discovered exit to Factory (range 4) 8672 | -8/Materials | Entered Factory 8672 | -7/Factory | Evolved 2 slots: Propulsion x1, Utility x1 8812 | -7/Factory | Fabricated Hacking Suite? 9102 | -7/Factory | Build established: Hacker-Sprinter 9202 | -7/Factory | Discovered new exit (range 5) 9208 | -7/Factory | Identified exit to Factory 9309 | -7/Factory | Repaired Lgt. Nuclear Core 9697 | -7/Factory | Fabricated Cld. VTOL Module? 9836 | -7/Factory | Build established: Wizard-Sprinter 10082 | -7/Factory | Discovered exit to Factory (range 8) 10087 | -7/Factory | Discovered exit to Factory (range 14) 10190 | -7/Factory | Entered another Factory area 10190 | -6/Factory | Evolved 2 slots: Utility x2 10196 | -6/Factory | Discovered new exit (range 4) 10284 | -6/Factory | Repaired Xenon Bombardment Thruster 10324 | -6/Factory | Repaired Cesium-ion Thruster 10395 | -6/Factory | Repaired Cld. VTOL Module 10456 | -6/Factory | Identified exit to Lower Caves 11047 | -6/Factory | Fabricated Cld. VTOL Module? 11650 | -6/Factory | Repaired Cld. VTOL Module? 11733 | -6/Factory | Identified exit to Factory 11820 | -6/Factory | Entered another Factory area 11820 | -5/Factory | Evolved 2 slots: Power x1, Propulsion x1 11852 | -5/Factory | Identified exit to DSF 11870 | -5/Factory | Discovered new exit (range 13) 11881 | -5/Factory | Identified exit to Upper Caves 11881 | -5/Factory | Identified exit to Extension 11881 | -5/Factory | Identified exit to Factory 12298 | -5/Factory | Entered Extension 12322 | -5/Extension | Spotted B-75 Beast 12434 | -5/Extension | Rescued a captive Derelict 12435 | -5/Extension | Rescued a captive Derelict 12461 | -5/Extension | Rescued a captive Derelict 12463 | -5/Extension | Rescued a captive Derelict 12482 | -5/Extension | Identified exit to Cetus 12490 | -5/Extension | Rescued a captive Derelict 12506 | -5/Extension | Spotted B-75 Beast 12508 | -5/Extension | Entered Factory 12508 | -4/Factory | Evolved 2 slots: Propulsion x1, Utility x1 12509 | -4/Factory | Lost 3 allies 12512 | -4/Factory | Identified exit to Research 12512 | -4/Factory | Identified exit to Upper Caves 12544 | -4/Factory | Identified exit to DSF 12544 | -4/Factory | Entered DSF 12561 | -4/DSF | Additional patrols routed to DSF 12563 | -4/DSF | Discovered exit to Research (range 14) 12572 | -4/DSF | Entered Research 12572 | -3/Research | Evolved 2 slots: Utility x2 12598 | -3/Research | Lost 4 parts (1p2n1w) 12815 | -3/Research | Spotted B-86 Titan 13178 | -3/Research | Fabricated Cld. Nuclear Pulse Thruster? 13811 | -3/Research | Spotted B-86 Titan 13881 | -3/Research | Core integrity fell below 50% 13931 | -3/Research | Self-destructed Last Messages --------------- 13879_ Hacking Suite damaged (-4). 13879_ Hacking Suite damaged (-2). 13879_ Impulse Thruster Array damaged (-46). 13880_ P-80 Master resets P-80 Master, system corruption cleaned. 13882_ Hacking Suite destroyed. 13884_ System corrupted: Matter fused (-5). 13885_ Acquired Adv. System Restoration Module. 13888_ Terminal disabled. 13888_ Impulse Thruster Array destroyed. 13896_ O-32 Director: "IFF HANDSHAKE FAILED. SECURING TERMINAL." 13902_ Acquired Unknown Device. 13902_ Identified Adv. Cooling System. 13903_ O-32 Director uses terminal to summon reinforcements. 13903_ ALERT: Hostiles spotted, dispatching reinforcements to Terminal R002. 13903_ O-32 Director locks terminal. 13909_ System corrupted: Heat flow error (+297). 13910_ Cloaking Device destroyed. 13925_ K-01 Serf cleans the Antimatter Diverter. 13927_ System corrupted: Component data lost. Map ----- +----------------------------------------------------+ | #####+#### ?????????????????????????????? | | # # "#"+#"#????????????????????????????? | | # # # #????????????????????????????? | | # """ # # !#????????????????????????????? | | # """ # " #????????????????????????????? | | # """ #% # #????????????????????????????? | | # # # #????????????????????????????? | | # # # ##???????????????????????????? | | # # # "#??????????????????????????? | | # # # ##?????????????????????????? | | #"######## #####""#?????????????????????????? | | ##############?###+######## | | ### # #?# | | ??? # ### | | #?# !! # """ """ / | | #?# !! ### # """ """ ###""" | | #?# #?# # """ """ #?#"R | | #?# BB# # #?#""" """ | | #?# BB# # #?# """ | | #?# ??# # """ """ #?# """ | | #?# ???# # """ """ #?# """ | | #?# ???# # """p """ #?# """ | | #?# #??+?????# # #?# """ | | #?# #????????# # p #?# """ | | ### #h???????# ###+#/########## | | #h???????# #?# @ s | | #????????# #?# s | | #????????# #?# p s | | #????????# #?# | | ########????????# #?# | | ####????????????# #?# | | #????????????# ### | | #???# ## * | | #???# ## | | " #?############ | | " #? #????# ! ! """ !!! " | | " #? ###### !!! """" !!! "" | | #? "" # !! """" ! "" | | #? "" # """ | | ####? "" # ] | | ????? S + | | ????? "" # | | ????? "" # ####+####### | | ????? "" # #?# ## # | | ????? ########## #?# ## # | | ????? #??????### ###! ## ######## | | ?????#+###+######## # ### #??????? | | ?????# T" ###"##+##?# #??????? | | ?????+ " #??# #??????? | | ?????# ###### #??# #####??????? | +----------------------------------------------------+ Best States ------------- Heat Dissipation 46 Energy Generation 49 Energy Capacity 360 Matter Stores 300 Matter Capacity 300 Sight Range 16 Terrain Scan Density 10 ECM Strength 1 Cloak Strength 2 Power Amplification 40 Additional Mass Support 6 Armor Coverage 750 Evasion (%) 67 Targeting Accuracy 8 Recoil Reduction 3 Offensive Hacking 94 Defensive Hacking 14 Authchip Count 2 Item Schematics ----------------- Hacking Suite | -8/Materials | Scanalyzed Cesium-ion Thruster | -8/Materials | Scanalyzed Scythe | -7/Factory | Scanalyzed Cld. VTOL Module | -7/Factory | Hacked Cld. Deuterium Engine | -6/Factory | Scanalyzed System Shield | -6/Factory | Scanalyzed Cld. Nuclear Pulse Thruster | -5/Factory | Scanalyzed Imp. Cloaking Device | -5/Extension | Hacked Robot Schematics ------------------ R-10 Processor | -5/Factory | Hacked Fabricated ------------ Hacking Suite | x1 | -7/Factory Cld. VTOL Module | x1 | -7/Factory Cld. VTOL Module | x1 | -6/Factory Cld. Nuclear Pulse Thruster | x1 | -3/Research Alien Tech Used ----------------- None Achievements -------------- Can't Catch Me Dramatic Entrance Maximum Efficiency Quantum Hacking Respectable Loadout Speed Demon True Hacker Whoosh! root@ Challenges ------------ None Game ------ Seed RecoilTrackerRail Manual? 0 Play Time 02:32:51 Cumulative 12.9 hours Start 2024.04.01 @ 20:28:04 End 2024.04.02 @ 19:31:02 Sessions 3 Manual Loads 0 Difficulty Rogue Special Mode None Game No. 12 Rogue 12 Adventurer 0 Explorer 0 Win Type - Total 0 Types 0/0/0/0/0/0/0/0/0 Lore% 8 Gallery% 20 Achievement% 19 Wizard Run 0 Options --------- Layout 0 ASCII 0 Keyboard 1 Movement Numpad Keybinds 0 Fullscreen 1 Font 18/SmallcapsGlow Map View 76x50 Zoom Use 0% Tactical HUD 1 Map Filters NONE Filters NONE Steam 1 RUN: e4146a80-5c4e-4cf5-9f81-9da2e21da705